bitfinex/quotes_ETHUSD_20220227
["timestamp","ask_amount","ask_price","bid_price","bid_amount"]
[1645963161009,1.0,2823.5,2823.3,1.50338549]
[1645963161208,1.0,2823.5,2823.4,1.49720179]
[1645963161658,0.8,2823.6,2823.4,1.49720179]
[1645963161854,2.1,2823.6,2823.4,1.49720179]
[1645963162055,1.8,2823.6,2823.4,1.49720179]
[1645963162258,1.8,2823.6,2823.5,1.49720179]
[1645963162458,1.8,2823.6,2823.4,1.49720179]
[1645963163063,0.8,2823.6,2823.4,1.49720179]
[1645963163263,1.0,2823.5,2823.4,1.49720179]
[1645963163465,1.0,2823.5,2823.3,1.50338553]
[1645963163765,0.5,2823.5,2823.4,1.49615578]
[1645963164567,1.0,2823.4,2822.9,3.2694533]
[1645963164767,1.0,2823.4,2823.3,0.0061837]
[1645963165603,1.0,2823.4,2823.0,7.5843]
[1645963165800,1.0,2823.4,2823.2,0.00618378]
[1645963166002,2.38800581,2823.4,2823.2,0.00618378]
[1645963166807,1.0,2823.4,2823.0,7.5843]
[1645963167004,1.0,2823.4,2823.2,0.00597658]
[1645963168010,1.0,2823.4,2823.0,7.5843]
[1645963168213,1.0,2823.4,2823.2,0.00597658]
[1645963169266,1.0,2823.4,2823.0,7.5843]
[1645963171068,1.0,2823.4,2823.3,1.27587225]
[1645963171270,1.0,2823.4,2823.3,4.77587225]
[1645963171473,0.5,2823.8,2823.5,0.3539]
[1645963171677,1.34064445,2824.5,2823.6,10.9371]
[1645963172075,1.34064445,2824.5,2824.2,1.28698047]
[1645963172271,0.25,2824.6,2823.7,1.2013]
[1645963172272,1.59064445,2824.6,2823.7,1.2013]
[1645963172474,0.5,2824.4,2823.8,3.5]
[1645963173012,0.5,2824.4,2823.7,1.2013]
[1645963173209,0.5,2824.4,2823.8,8.14108261]
[1645963173609,0.5,2824.4,2823.8,11.64108261]
[1645963174815,0.5,2824.4,2823.8,7.0827]
[1645963175215,0.5,2824.4,2824.0,0.5]
[1645963180299,0.5,2824.4,2824.1,3.5]
[1645963180901,0.5,2824.4,2823.9,3.5]
[1645963181101,0.5,2824.4,2824.0,7.0822]
[1645963181303,0.5,2824.4,2824.2,0.3539]
[1645963181602,0.5,2824.4,2824.3,10.5814]
[1645963182605,0.5,2824.4,2824.3,10.9353]
[1645963183404,0.5,2824.4,2824.3,10.5814]
[1645963184049,0.5,2824.4,2824.3,12.07807305]
[1645963185551,0.5,2824.7,2824.3,12.07807305]
[1645963185751,0.5,2824.7,2824.3,10.9353]
[1645963187600,0.5,2824.7,2824.3,10.5814]
[1645963190705,0.5,2824.7,2824.3,7.0814]
[1645963191954,0.00588472,2824.9,2824.3,7.0814]
[1645963192153,0.00096,2825.1,2824.7,1.02221635]
[1645963192357,0.00588472,2824.9,2824.3,7.0814]
[1645963193162,0.02449783,2825.1,2824.3,7.0814]
[1645963193163,0.00096,2825.1,2824.3,7.0814]
[1645963193361,1.50096,2825.2,2824.4,1.21215008]
[1645963193560,0.00588311,2824.9,2824.4,1.21215008]
[1645963193760,0.00588311,2824.9,2824.5,7.0809]
[1645963194360,1.50096,2825.2,2824.5,7.0809]
[1645963194765,0.00588319,2824.9,2824.5,7.0809]
[1645963195406,1.0,2824.7,2824.5,7.0809]
[1645963195606,2.93976001,2824.8,2824.5,7.0809]
[1645963195808,0.3,2824.7,2824.5,7.0809]
[1645963196003,2.43867081,2824.6,2824.5,7.0809]
[1645963196204,2.73867081,2824.6,2824.5,7.0809]
[1645963196603,3.73867081,2824.6,2824.5,7.0809]
[1645963197403,3.73867081,2824.6,2824.5,5.5335]
[1645963197603,3.88027081,2824.6,2824.5,5.2434]
[1645963197811,6.82003082,2824.6,2824.5,5.2434]
[1645963198008,6.82003082,2824.6,2823.5,7.0595]
[1645963198208,0.14256,2824.5,2823.5,7.0595]
[1645963198513,1.19713477,2824.0,2823.5,7.0595]
[1645963198708,2.19713477,2824.0,2823.6,7.0828]
[1645963198949,1.19713477,2824.0,2823.6,7.0828]
[1645963199153,1.0,2823.9,2823.6,7.0828]
[1645963199357,0.3,2824.1,2823.6,7.0828]
[1645963199556,2.55096,2824.3,2823.6,7.0828]
[1645963199759,1.0,2824.2,2823.6,7.0828]
[1645963200155,0.55096,2824.3,2823.6,7.0828]
[1645963200355,1.69395617,2824.2,2823.6,7.0828]
[1645963200556,1.3,2824.2,2823.6,7.0828]
[1645963201160,0.3,2824.2,2823.6,7.0828]
[1645963201557,2.05432477,2824.3,2823.6,7.0828]
[1645963201754,0.55096,2824.3,2823.6,7.0828]
[1645963201956,0.25096,2824.3,2823.7,4.99691708]
[1645963202156,0.25096,2824.3,2823.8,1.49691708]
[1645963202157,0.00096,2824.3,2823.8,1.49691708]
[1645963202355,0.5,2824.4,2823.9,3.5]
[1645963202621,0.5,2824.3,2824.0,1.49691708]
[1645963202813,0.5,2824.3,2824.1,4.70547137]
[1645963203013,0.00096,2825.0,2824.2,3.5]
[1645963203213,0.00553753,2824.9,2824.2,10.5817]
[1645963203415,0.006,2824.7,2824.2,10.5817]
[1645963203613,0.006,2824.7,2824.2,21.85252303]
[1645963203821,0.006,2824.7,2824.4,0.3539]
[1645963204013,0.006,2824.7,2824.5,3.8539]
[1645963204212,0.006,2824.7,2824.6,1.27107883]
[1645963204613,1.061,2824.9,2824.6,0.69478495]
[1645963205013,1.061,2824.9,2824.7,3.5]
[1645963205014,0.99701,2824.9,2824.7,3.5]
[1645963205617,0.99701,2824.9,2824.7,4.3539]
[1645963205817,0.99701,2824.9,2824.8,3.55419752]
[1645963206656,0.99701,2824.9,2824.8,3.90809752]
[1645963206954,0.06378612,2825.6,2825.5,1.33388477]
[1645963207155,1.06079612,2825.6,2824.8,11.11561764]
[1645963207356,1.06175612,2825.6,2824.8,11.11561764]
[1645963207957,0.0058503,2825.3,2824.8,11.11561764]
[1645963208157,0.0058503,2825.3,2824.9,1.13189985]
[1645963208358,0.0058503,2825.3,2825.0,10.5796]
[1645963208760,0.0058503,2825.3,2825.2,0.05419752]
[1645963208963,1.07454744,2825.3,2825.2,7.13329752]
[1645963209160,2.0774078,2825.3,2825.2,7.13329752]
[1645963209360,3.15195524,2825.3,2825.2,7.13329752]
[1645963210205,3.14610488,2825.3,2825.2,7.13329752]
[1645963212808,3.14610488,2825.3,2825.2,6.86857087]
[1645963215364,3.14610488,2825.3,2825.2,7.36857087]
[1645963216967,3.14610488,2825.3,2825.2,6.86857087]
[1645963217606,4.14610488,2825.3,2825.2,6.86857087]
[1645963218015,3.14610488,2825.3,2825.2,6.86857087]
[1645963218209,4.14610488,2825.3,2825.2,6.86857087]
[1645963218612,3.14610488,2825.3,2825.2,5.86857087]
[1645963219418,3.14485255,2825.3,2825.2,5.86857087]
[1645963219613,4.14485255,2825.3,2825.2,5.86857087]
[1645963219812,3.07155744,2825.3,2825.2,5.86857087]
[1645963220114,4.14485255,2825.3,2825.2,5.86857087]
[1645963221560,3.14485255,2825.3,2825.2,5.86857087]
[1645963221761,3.14485255,2825.3,2825.2,9.72247087]
[1645963223466,1.54899578,2825.3,2825.2,11.21858659]
[1645963223667,0.00584031,2825.4,2825.3,7.3539]
[1645963223865,0.00584031,2825.4,2825.3,20.63941572]
[1645963224067,0.00584031,2825.4,2825.3,21.10450443]
[1645963224263,0.00584031,2825.4,2825.3,20.63941572]
[1645963224467,0.00584031,2825.4,2825.3,21.83739999]
[1645963224663,0.5,2825.4,2825.3,33.79960746]
[1645963224864,0.00584018,2825.5,2825.3,33.98119575]
[1645963225112,0.00584018,2825.5,2825.4,16.49756626]
[1645963225305,0.00584018,2825.5,2825.4,24.63563344]
[1645963225504,0.00584018,2825.5,2825.4,24.79394009]
[1645963225703,0.00096,2826.5,2825.4,14.78061572]
[1645963225905,0.00096,2826.7,2825.6,0.3539]
[1645963226104,0.02335673,2826.0,2825.7,3.5]
[1645963226304,0.02335673,2826.0,2825.9,0.5]
[1645963226504,0.52335673,2826.0,2825.9,8.2879]
[1645963226905,0.5,2826.0,2825.9,8.2879]
[1645963227113,0.5,2826.0,2825.9,11.7879]
[1645963227712,0.5,2826.0,2825.9,8.2879]
[1645963228859,0.00841629,2826.5,2826.0,7.0]
[1645963229060,0.00841629,2826.5,2826.1,27.5974]
[1645963229360,0.00096,2827.1,2826.2,1.84958781]
[1645963229561,0.00096,2827.1,2826.4,0.3539]
[1645963229769,2.3118537,2827.2,2827.0,1.39380703]
[1645963229960,2.3118537,2827.2,2827.1,8.2849]
[1645963230259,0.5,2827.2,2827.1,8.2849]
[1645963237271,0.5,2827.2,2827.1,11.7849]
[1645963237674,0.5,2827.2,2827.1,8.2849]
[1645963239980,0.5,2827.2,2827.1,11.7849]
[1645963240207,0.5,2827.2,2827.1,8.2849]
[1645963240807,0.5,2827.2,2827.1,8.6388]
[1645963241207,0.5,2827.2,2827.1,12.1388]
[1645963241407,0.5,2827.2,2827.1,9.18136052]
[1645963241807,0.5,2827.2,2827.1,8.2849]
[1645963243511,0.5,2827.2,2827.1,8.6388]
[1645963243712,0.5,2827.2,2827.1,8.2849]
[1645963249018,0.5,2827.2,2827.1,8.2349]
[1645963252468,0.5,2827.2,2827.1,11.7349]
[1645963252668,0.5,2827.2,2827.1,8.2349]
[1645963253571,0.5,2827.2,2827.1,11.7349]
[1645963253969,0.5,2827.2,2827.1,8.2349]
[1645963262269,0.5,2827.2,2827.1,11.7349]
[1645963262927,0.00583334,2827.3,2827.1,11.7349]
[1645963263124,0.5,2827.6,2827.1,11.7349]
[1645963263329,0.00583334,2827.3,2827.1,11.7349]
[1645963263523,0.00583334,2827.3,2827.1,8.2349]
[1645963263924,0.00583334,2827.3,2827.1,11.7349]
[1645963264124,0.00583334,2827.3,2827.2,3.5]
[1645963264325,0.5,2827.6,2827.2,11.8346]
[1645963264533,0.00583328,2827.3,2827.2,8.3346]
[1645963264726,0.00583328,2827.3,2827.2,11.8346]
[1645963264928,0.00583328,2827.3,2827.2,8.3346]
[1645963265125,0.00583328,2827.3,2827.2,8.8346]
[1645963265427,0.5,2827.6,2827.2,8.8346]
[1645963265727,0.00583322,2827.4,2827.2,8.8346]
[1645963266765,0.5,2827.6,2827.2,8.8346]
[1645963266966,0.00583316,2827.4,2827.2,8.8346]
[1645963267165,0.00583316,2827.4,2827.2,8.3346]
[1645963267467,0.00583316,2827.4,2827.2,8.8346]
[1645963267668,0.50583316,2827.4,2827.2,8.8346]
[1645963267870,0.5,2827.4,2827.2,8.8346]
[1645963268075,0.50583316,2827.4,2827.2,8.8346]
[1645963269171,0.5,2827.4,2827.2,8.8346]
[1645963269371,0.50583316,2827.4,2827.2,8.8346]
[1645963270230,0.5,2827.4,2827.2,8.8346]
[1645963270631,0.50583316,2827.4,2827.2,8.8346]
[1645963271433,0.5,2827.4,2827.2,8.8346]
[1645963271831,0.50583316,2827.4,2827.3,1.49516409]
[1645963272031,0.50583316,2827.4,2827.3,9.82956409]
[1645963272641,0.5,2827.4,2827.3,9.82956409]
[1645963273961,0.5,2827.4,2827.3,13.32956409]
[1645963274762,0.5,2827.4,2827.3,9.82956409]
[1645963275163,0.00096,2827.8,2827.4,0.72578308]
[1645963275366,0.0233289,2827.9,2827.5,13.32906409]
[1645963275565,0.0233289,2827.9,2827.6,1.49516409]
[1645963275863,0.0233289,2827.9,2827.7,22.5934]
[1645963276066,0.5233289,2827.9,2827.8,5.99516409]
[1645963276264,0.5,2827.9,2827.8,5.99516409]
[1645963276462,0.5,2827.9,2827.8,14.37826409]
[1645963276663,0.5,2827.9,2827.8,25.54216409]
[1645963276865,0.00013255,2827.9,2827.8,28.6031768]
[1645963277063,0.00013255,2827.9,2827.8,28.60309957]
[1645963277264,0.00013255,2827.9,2827.8,28.87590957]
[1645963277476,0.00096,2829.1,2828.0,11.1639]
[1645963277733,0.00096,2829.3,2828.2,10.81]
[1645963278038,1.34064445,2829.4,2828.5,0.9728]
[1645963278232,0.00096,2829.3,2828.6,8.3811]
[1645963278433,0.0460423,2829.3,2828.6,8.3811]
[1645963278636,0.0470023,2829.3,2828.6,8.3811]
[1645963278830,0.0460423,2829.3,2828.6,8.3811]
[1645963279033,1.07351448,2829.2,2828.6,8.3811]
[1645963279432,0.04490546,2829.1,2828.6,8.3811]
[1645963279833,0.04433703,2829.0,2828.6,8.3811]
[1645963280233,0.04376861,2828.9,2828.6,8.3811]
[1645963280633,0.04320019,2828.8,2828.6,8.3811]
[1645963280835,1.34386849,2828.8,2828.6,8.3811]
[1645963281036,0.04263176,2828.7,2828.6,8.3811]
[1645963282680,7.0,2828.6,2828.3,0.0061879]
[1645963282881,3.6414,2828.5,2828.3,0.0061879]
[1645963283081,3.68289491,2828.5,2828.3,0.0061879]
[1645963283282,1.48289491,2828.5,2828.3,0.0061879]
[1645963283483,0.04092649,2828.4,2828.0,0.34396264]
[1645963283886,12.0,2828.2,2827.7,0.001011]
[1645963284080,12.0,2828.2,2827.7,0.02568574]
[1645963284280,8.3,2828.2,2827.7,0.02568574]
[1645963284479,1.3,2828.2,2827.7,0.05231307]
[1645963284882,0.3,2828.2,2827.7,0.05231307]
[1645963285130,2.75742823,2828.3,2827.9,0.07805595]
[1645963286020,2.89882823,2828.3,2827.9,0.07186779]
[1645963286220,0.5,2828.0,2827.9,0.07186779]
[1645963286622,0.8,2828.0,2827.9,0.07186779]
[1645963287628,1.8,2828.0,2827.9,0.07186779]
[1645963288031,7.0,2827.9,2827.8,0.00618829]
[1645963288232,1.0,2827.8,2827.7,0.05231307]
[1645963288432,1.3,2827.9,2827.7,0.05231307]
[1645963288640,1.3,2827.9,2827.8,0.00618829]
[1645963288862,0.3,2827.9,2827.8,0.00618829]
[1645963289067,1.0,2827.9,2827.8,0.00618829]
[1645963289262,1.3,2827.9,2827.8,0.00618829]
[1645963289464,1.3,2827.9,2827.7,0.05130207]
[1645963289770,1.3,2827.9,2827.2,9.108e-05]
[1645963289771,18.11,2827.7,2827.2,9.108e-05]
[1645963289964,1.0,2827.3,2827.2,9.108e-05]
[1645963290163,1.0,2827.3,2827.2,7.07409108]
[1645963290361,1.3,2827.3,2827.2,7.07409108]
[1645963290562,2.69889542,2827.3,2827.2,7.09876582]
[1645963290764,2.3,2827.3,2827.2,7.09876582]
[1645963290966,1.3,2827.3,2827.2,7.09876582]
[1645963291164,0.3,2827.5,2827.2,7.09876582]
[1645963291364,0.4414,2827.6,2827.2,7.09876582]
[1645963291765,1.0,2827.3,2827.2,7.09876582]
[1645963291970,4.188,2827.2,2826.6,0.27188667]
[1645963292171,5.0,2826.9,2826.6,0.27188667]
[1645963292367,3.6414,2827.1,2826.6,0.27188667]
[1645963292368,3.8914,2827.1,2826.6,0.27188667]
[1645963292629,3.8914,2827.1,2826.6,0.29656141]
[1645963292630,1.3,2826.9,2826.6,0.29656141]
[1645963292821,1.0,2826.7,2826.6,0.2975724]
[1645963293226,0.25,2827.1,2826.6,0.2975724]
[1645963293424,0.25,2827.1,2826.7,1.49545334]
[1645963294023,0.5,2826.9,2826.7,1.49545334]
[1645963294229,0.5,2826.9,2826.7,1.39017137]
[1645963294623,0.5,2826.9,2826.7,1.39634786]
[1645963295028,0.25,2827.1,2826.7,0.00617649]
[1645963295225,0.5,2826.9,2826.7,0.00617649]
[1645963295423,0.5,2826.9,2826.7,0.50617649]
[1645963295624,0.5,2826.9,2826.7,0.5]
[1645963295824,0.5,2826.9,2826.7,0.50618984]
[1645963296227,0.5,2826.9,2826.7,0.00618984]
[1645963296878,0.5,2826.9,2826.6,0.24620094]
[1645963297074,0.5,2826.9,2826.7,1.11008792]
[1645963297679,0.5,2826.9,2826.7,0.00618984]
[1645963297879,0.4,2826.9,2826.7,0.00618984]
[1645963298079,0.4,2826.9,2826.6,0.34274347]
[1645963298080,1.4,2826.9,2826.6,0.34274347]
[1645963298481,1.4,2826.9,2826.7,0.00618984]
[1645963298680,2.56870119,2826.9,2826.7,0.00618984]
[1645963298886,1.56870119,2826.9,2826.7,0.00618984]
[1645963299081,1.0,2826.8,2826.7,0.00618984]
[1645963299282,1.0,2826.8,2826.6,0.439286]
[1645963299485,2.56870119,2826.9,2826.7,0.00618984]
[1645963299882,7.56870119,2826.9,2826.7,0.00618984]
[1645963300152,1.0,2826.8,2826.7,0.00618984]
[1645963300339,1.1414,2826.8,2826.7,0.00618984]
[1645963300538,1.1414,2826.8,2826.6,0.48749004]
[1645963300738,1.1414,2826.8,2826.7,0.00618984]
[1645963301139,0.1414,2826.8,2826.7,0.00618984]
[1645963301540,1.1414,2826.8,2826.7,0.00618984]
[1645963301741,1.1414,2826.8,2826.6,0.53475248]
[1645963301940,1.40582705,2826.7,2826.6,0.51936568]
[1645963302245,1.70582705,2826.7,2826.6,0.52037667]
[1645963302441,0.3,2826.7,2826.6,0.52037667]
[1645963302847,0.3,2826.8,2826.6,0.56756972]
[1645963303048,0.3,2826.8,2826.6,0.48951202]
[1645963303349,0.7,2826.9,2826.6,0.48951202]
[1645963303548,1.0,2826.7,2826.6,0.48951202]
[1645963303748,2.1851641,2826.7,2826.6,0.48951202]
[1645963303987,2.16048936,2826.7,2826.6,0.53576347]
[1645963304486,3.25611402,2826.7,2826.6,0.53576347]
[1645963304890,4.25611402,2826.7,2826.6,0.53576347]
[1645963305689,4.25611402,2826.7,2826.6,0.52096347]
[1645963305987,4.25611402,2826.7,2826.6,0.53576347]
[1645963306592,2.27532526,2826.7,2826.6,0.53576347]
[1645963306792,2.27532526,2826.7,2826.5,0.17433315]
[1645963306793,0.27500434,2826.6,2826.5,0.18016492]
[1645963306995,0.1801,2826.5,2825.6,0.3537]
[1645963307194,5.0,2826.3,2825.6,0.3537]
[1645963307401,0.1414,2826.2,2825.7,7.0773]
[1645963307636,0.4,2825.8,2825.7,7.0773]
[1645963307832,0.1414,2826.2,2825.8,0.52607636]
[1645963308131,0.1414,2826.2,2826.1,1.31039984]
[1645963308334,0.3,2826.2,2825.8,0.52607636]
[1645963308532,1.0,2826.0,2825.8,0.52607636]
[1645963308732,1.5,2826.0,2825.8,0.52607636]
[1645963308932,1.0,2826.0,2825.8,0.52607636]
[1645963309132,0.3,2826.1,2825.8,0.52607636]
[1645963309332,0.8,2826.2,2825.8,0.52607636]
[1645963309733,1.8,2826.2,2825.9,1.11385382]
[1645963309941,1.8,2826.2,2825.8,0.52607636]
[1645963310532,1.8,2826.2,2825.9,0.00619085]
[1645963310733,0.8,2826.2,2825.9,0.00619085]
[1645963311367,1.0,2826.0,2825.8,0.52607636]
[1645963311568,1.0,2826.0,2825.9,0.00619085]
[1645963311768,1.0,2826.0,2825.9,1.04476387]
[1645963312367,1.0,2826.0,2825.9,1.05558021]
[1645963312571,1.0,2826.0,2825.9,0.01081634]
[1645963312775,0.3,2826.1,2825.9,0.01081634]
[1645963313371,0.8,2826.2,2825.9,0.01081634]
[1645963313572,1.0,2825.9,2825.8,1.49713722]
[1645963313774,1.0,2825.9,2825.8,0.42927709]
[1645963315846,0.3,2826.0,2825.8,0.42927709]
[1645963316048,0.3,2826.1,2825.8,0.42927709]
[1645963316252,0.79898901,2826.2,2825.9,1.03531865]
[1645963316550,1.0,2826.1,2825.9,1.03531865]
[1645963317659,1.0,2826.1,2825.9,1.04136659]
[1645963317857,0.79898901,2826.2,2825.9,1.04136659]
[1645963317858,1.09898901,2826.2,2825.9,1.04136659]
[1645963318054,1.04898901,2826.2,2825.9,1.04136659]
[1645963318455,2.04898901,2826.2,2825.9,1.03531865]
[1645963318655,1.04898901,2826.2,2825.9,1.03531865]
[1645963318873,1.0,2826.0,2825.9,1.0415095]
[1645963319674,1.0,2826.0,2825.9,1.03531865]
[1645963320282,1.0,2826.0,2825.8,0.43546807]
[1645963320678,1.0,2825.9,2825.8,0.43546807]
[1645963320875,1.0,2825.9,2825.8,0.42927709]
[1645963321378,1.0,2825.9,2825.8,1.66172448]
[1645963322174,1.0,2825.9,2825.8,1.65553343]
[1645963326252,0.75,2826.2,2825.8,1.65553343]
[1645963326479,1.0,2826.1,2825.8,1.65553343]
[1645963326680,1.0,2826.0,2825.8,1.65553343]
[1645963327082,0.75,2826.2,2825.9,8.57315523]
[1645963327083,0.5,2826.2,2825.9,8.57315523]
[1645963327281,0.25,2827.1,2826.0,1.84965523]
[1645963327481,0.25,2827.1,2826.1,4.24832271]
[1645963327685,0.25,2827.1,2826.3,0.3539]
[1645963327884,0.25,2827.1,2826.4,2.37704541]
[1645963328089,0.25,2827.1,2826.5,7.0759]
[1645963328984,0.5,2827.0,2826.5,7.0759]
[1645963329187,0.5,2827.0,2826.8,1.14448749]
[1645963329486,0.5,2827.0,2826.9,7.0749]
[1645963331825,0.8,2827.0,2826.9,7.0749]
[1645963332731,1.8,2827.0,2826.9,7.0749]
[1645963333529,0.8,2827.0,2826.9,7.0749]
[1645963334172,0.5,2827.0,2826.9,7.0749]
[1645963334573,1.5,2827.0,2826.9,7.0749]
[1645963335175,3.08670473,2827.8,2827.2,2.5]
[1645963335377,3.78355,2828.6,2827.2,2.5]
[1645963335378,0.66600366,2827.9,2827.3,4.07441385]
[1645963335575,0.03093444,2828.1,2827.5,0.01211614]
[1645963335886,0.89294624,2828.7,2827.7,0.3539]
[1645963336076,0.04206334,2828.6,2827.9,0.3539]
[1645963336375,4.29562385,2829.3,2828.1,0.3539]
[1645963336575,0.04263176,2828.7,2828.4,0.3539]
[1645963336775,3.176e-05,2828.7,2828.6,0.3539]
[1645963336975,3.176e-05,2828.7,2828.6,7.0706]
[1645963338639,3.176e-05,2828.7,2827.7,1.1953]
[1645963338640,7.0,2828.5,2827.7,1.1953]
[1645963338838,0.25,2828.4,2827.3,0.21571385]
[1645963339037,0.25096,2828.4,2827.3,0.07441385]
[1645963339238,1.53534816,2828.3,2827.5,1.18309402]
[1645963339435,1.53534816,2828.3,2827.3,0.07441385]
[1645963339636,0.00096,2828.2,2827.3,3.57441385]
[1645963339838,0.00096,2828.2,2827.3,0.07441385]
[1645963340036,0.50096,2828.2,2827.3,0.07441385]
[1645963340236,0.5,2828.2,2827.3,0.07441385]
[1645963340435,0.50619643,2828.2,2827.6,0.00619782]
[1645963340635,1.40715728,2828.1,2827.6,0.00619782]
[1645963341043,2.35715728,2828.1,2827.6,0.00619782]
[1645963341236,1.0,2828.1,2827.3,0.07441385]
[1645963341478,0.00096,2828.1,2827.3,0.07441385]
[1645963341676,0.5,2828.1,2827.3,0.07441385]
[1645963341874,1.5,2828.1,2827.3,0.07441385]
[1645963342074,1.0,2828.0,2827.3,0.07441385]
[1645963342575,1.0,2828.0,2827.3,1.51076847]
[1645963342780,1.74728207,2828.1,2827.3,1.51076847]
[1645963342781,0.5,2828.1,2827.3,1.51076847]
[1645963343983,0.5,2828.1,2827.6,0.0062021]
[1645963344979,0.5,2828.1,2827.3,1.86466847]
[1645963345241,0.5,2828.1,2827.9,1.56015979]
[1645963345637,0.5,2828.1,2827.9,0.5]
[1645963346439,0.5,2828.1,2827.9,0.00582357]
[1645963347238,0.5,2828.1,2827.5,0.1414]
[1645963347437,0.5,2828.1,2827.6,7.0731]
[1645963347640,0.5,2828.1,2827.9,0.00582357]
[1645963348442,0.5,2828.1,2827.7,1.26458905]
[1645963348909,0.45,2828.1,2827.9,0.00582357]
[1645963349698,0.45,2828.1,2827.7,1.61848905]
[1645963349897,0.00096,2828.6,2828.1,0.73146581]
[1645963350101,0.00584829,2828.2,2828.1,0.73146581]
[1645963350902,3.176e-05,2828.7,2828.1,0.73146581]
[1645963351103,0.00236748,2828.3,2828.1,0.73146581]
[1645963352106,1.33469218,2828.6,2828.1,0.73146581]
[1645963352305,3.176e-05,2828.7,2828.1,0.73146581]
[1645963352509,0.00236748,2828.3,2828.1,0.73146581]
[1645963353534,0.00620371,2828.3,2828.1,0.73146581]
[1645963353736,0.00620371,2828.3,2828.1,1.53146581]
[1645963354237,0.00620371,2828.3,2828.2,1.09816358]
[1645963354636,3.176e-05,2828.7,2828.1,1.53146581]
[1645963354835,0.00620371,2828.3,2828.1,1.53146581]
[1645963355436,0.00620371,2828.3,2828.1,2.03146581]
[1645963355639,0.00620371,2828.3,2828.2,1.13069672]
[1645963355838,3.176e-05,2828.7,2828.2,1.13069672]
[1645963356041,0.00620371,2828.3,2828.2,1.13069672]
[1645963356980,3.176e-05,2828.7,2828.2,1.13069672]
[1645963357180,0.00620364,2828.4,2828.2,1.13069672]
[1645963358185,3.176e-05,2828.7,2828.1,2.03146581]
[1645963358387,0.00620357,2828.4,2828.1,2.03146581]
[1645963359287,1.26541364,2828.7,2828.1,2.03146581]
[1645963359488,0.25,2828.5,2828.2,0.5]
[1645963359888,0.00620364,2828.4,2828.2,0.5]
[1645963360933,0.00620357,2828.4,2828.2,0.5]
[1645963362235,0.00582541,2828.4,2828.2,0.5]
[1645963362439,0.00582541,2828.4,2828.3,3.17465023]
[1645963362641,0.00582541,2828.4,2828.2,0.5]
[1645963362642,0.00582541,2828.4,2828.2,0.8539]
[1645963362842,0.00582541,2828.4,2828.3,7.0714]
[1645963363041,0.00582541,2828.4,2828.3,10.24923658]
[1645963363241,0.00582541,2828.4,2828.3,7.0714]
[1645963363642,0.00582541,2828.4,2828.3,8.91975004]
[1645963363906,3.176e-05,2828.7,2828.3,8.91975004]
[1645963363907,0.00549868,2828.5,2828.3,8.91975004]
[1645963364098,0.00549868,2828.5,2828.4,0.3539]
[1645963364302,0.00549868,2828.5,2828.4,8.91936445]
[1645963364701,0.0109973,2828.5,2828.4,8.91936445]
[1645963364897,0.00549862,2828.5,2828.4,9.13285366]
[1645963365298,0.00549862,2828.5,2828.4,8.91936445]
[1645963365498,3.176e-05,2828.7,2828.4,8.91936445]
[1645963365797,3.176e-05,2828.7,2828.6,1.37073432]
[1645963365995,3.176e-05,2828.7,2828.6,8.44133432]
[1645963366601,0.02213711,2829.0,2828.6,8.79523432]
[1645963367198,0.00096,2829.8,2828.6,8.79523432]
[1645963367199,0.00568106,2828.8,2828.6,8.79523432]
[1645963368139,0.00568106,2828.8,2828.6,8.44133432]
[1645963368342,0.005681,2828.8,2828.6,8.44133432]
[1645963368543,0.005681,2828.8,2828.6,7.0706]
[1645963369546,0.00568201,2828.8,2828.6,7.0706]
[1645963369745,0.00568201,2828.8,2828.7,1.26553765]
[1645963369944,0.00568201,2828.8,2828.7,8.33593765]
[1645963370145,0.5,2829.2,2828.9,0.00915754]
[1645963370347,0.5,2829.2,2829.0,7.0696]
[1645963372282,0.5,2829.2,2829.0,10.5696]
[1645963372482,0.5,2829.2,2829.1,3.5]
[1645963372692,0.5,2829.2,2829.1,10.5694]
[1645963372887,0.5,2829.2,2829.1,7.0694]
[1645963373691,0.5,2829.2,2829.1,10.5694]
[1645963374187,0.5,2829.2,2829.1,7.0694]
[1645963374786,0.5,2829.2,2829.1,10.5694]
[1645963375430,0.00620242,2829.3,2829.1,10.5694]
[1645963375729,0.00620242,2829.3,2829.1,7.0694]
[1645963376732,1.76888709,2829.9,2829.1,7.0694]
[1645963376936,0.73196838,2829.9,2829.1,7.0694]
[1645963377837,1.10697086,2829.7,2829.4,0.00348707]
[1645963378896,1.10697086,2829.7,2829.1,7.0694]
[1645963379083,0.3058234,2829.8,2829.4,0.00582429]
[1645963379283,0.0058234,2829.8,2829.4,0.00582429]
[1645963379884,0.23196838,2829.9,2829.2,3.5]
[1645963380086,0.00096,2829.8,2829.3,1.49414018]
[1645963380287,0.00234837,2829.8,2829.1,7.0694]
[1645963380493,0.00330837,2829.8,2829.2,1.49417421]
[1645963380687,1.0,2829.4,2829.1,7.0694]
[1645963381086,1.3,2829.4,2829.1,7.0694]
[1645963381286,2.72932501,2829.4,2829.1,7.0694]
[1645963381488,2.72932501,2829.4,2829.1,7.07561432]
[1645963382092,3.5,2829.3,2829.1,5.0825873]
[1645963382286,4.5,2829.3,2829.1,4.57637298]
[1645963382487,0.1413,2829.2,2829.1,4.57637298]
[1645963382743,0.1413,2829.2,2829.1,4.5825873]
[1645963382943,0.8,2829.2,2829.1,4.5825873]
[1645963383143,0.9413,2829.2,2829.1,4.5825873]
[1645963383543,0.9413,2829.2,2829.1,4.57637298]
[1645963383748,1.82576,2829.2,2829.1,4.57637298]
[1645963383943,2.82576,2829.2,2829.1,4.57637298]
[1645963384142,6.32576,2829.2,2829.1,4.57637298]
[1645963384342,3.82576,2829.2,2829.1,4.57637298]
[1645963384542,7.32576,2829.2,2829.1,4.57637298]
[1645963385243,3.32576,2829.2,2829.1,4.57637298]
[1645963385445,7.32576,2829.2,2829.1,4.57637298]